fUSD/lending_fUSD_20240715
["ID","MTS","AMOUNT","RATE_DAILY","PERIOD"]
[332190393,1721022633752,-183.8767,0.00013897,2]
[332190394,1721022633762,-28678.0393,0.00013897,2]
[332190395,1721022633771,-500.0,0.00013899,2]
[332190396,1721022633780,-2351.74,0.00013899,2]
[332190397,1721022633790,-156.07276861,0.00013899,2]
[332190398,1721022633799,-167.78202314,0.00013899,2]
[332190399,1721022633809,-20906.75764529,0.000139,2]
[332190400,1721022633820,-298.96499867,0.000139,2]
[332190401,1721022633832,-2559.38,0.000139,2]
[332190402,1721022633844,-2722.04110642,0.000139,2]
[332190403,1721022633855,-797.97157029,0.000139,2]
[332190404,1721022633866,-337.01913656,0.000139,2]
[332190405,1721022633878,-3255.09037,0.000139,2]
[332190406,1721022633889,-582.05178,0.000139,2]
[332190407,1721022633900,-845.53769277,0.000139,2]
[332190408,1721022633910,-854.46230723,0.000139,2]
[332190409,1721022633924,-145.53769277,0.000139,2]
[332190410,1721022633934,-160.66698469,0.000139,2]
[332190411,1721022633945,-129.62691531,0.000139,2]
[332190412,1721022633955,-327.8808,0.000139,2]
[332190413,1721022633964,-14.63550971,0.000139,2]
[332190429,1721022638741,-252.81223354,0.00013128,2]
[332190430,1721022638750,-149.22538987,0.000139,2]
[332190431,1721022638760,-200.0,0.000139,5]
[332190432,1721022638769,-326.21886683,0.000139,2]
[332190433,1721022638779,-178.58446462,0.000139,2]
[332190434,1721022638788,-409.23229485,0.00013939,2]
[332190435,1721022638797,-210.0669,0.00013954,2]
[332190436,1721022638807,-2351.74,0.00013954,2]
[332190437,1721022638816,-254.25713924,0.00013989,2]
[332190438,1721022638826,-455.27096714,0.00013989,2]
[332190439,1721022638836,-156.02522308,0.00013989,2]
[332190440,1721022638845,-155.0,0.00013989,2]
[332190441,1721022638854,-6813.5977139,0.00013995,2]
[332190442,1721022638863,-1657.391912,0.00013995,2]
[332190443,1721022638872,-500.0,0.00013997,2]
[332190444,1721022638881,-273.01087659,0.00013997,2]
[332190445,1721022638890,-500.0,0.00013997,2]
[332190446,1721022638899,-500.0,0.00013997,2]
[332190447,1721022638908,-769.67,0.00013997,2]
[332190448,1721022638918,-500.0,0.00013997,2]
[332190449,1721022638927,-500.0,0.00013997,2]
[332190450,1721022638936,-513.88504201,0.00013997,2]
[332190451,1721022638946,-500.0,0.00013997,2]
[332190452,1721022638955,-501.18273222,0.00013997,2]
[332190453,1721022638964,-502.81795299,0.00013997,2]
[332190454,1721022638973,-329.1036521,0.00013997,2]
[332190455,1721022638982,-500.0,0.00013999,2]
[332190456,1721022638991,-500.0,0.00013999,2]
[332190457,1721022639000,-500.0,0.00013999,2]
[332190458,1721022639009,-1030.75,0.00013999,2]
[332190459,1721022639018,-500.0,0.00013999,2]
[332190460,1721022639027,-500.0,0.00013999,2]
[332190461,1721022639037,-500.0,0.00013999,2]
[332190462,1721022639046,-500.0,0.00013999,2]
[332190463,1721022639055,-500.0,0.00013999,2]
[332190465,1721022639064,-606.14,0.00013999,2]
[332190467,1721022639073,-500.0,0.00013999,2]
[332190468,1721022639082,-500.0,0.00013999,2]
[332190470,1721022639091,-1356.65,0.00013999,2]
[332190472,1721022639100,-585.68999435,0.00013999,2]
[332190474,1721022639109,-500.0,0.00013999,2]
[332190476,1721022639118,-500.0,0.00013999,2]
[332190478,1721022639127,-501.75956058,0.00013999,2]
[332190480,1721022639136,-371.03273682,0.00013999,2]
[332190482,1721022639144,-158.68761906,0.00013999,2]
[332190484,1721022639153,-500.0,0.00013999,2]
[332190486,1721022639163,-500.0,0.00013999,2]
[332190488,1721022639174,-1608.89,0.00013999,2]
[332190490,1721022639183,-202.35307835,0.00013999,2]
[332190492,1721022639192,-11223.45364985,0.00014,2]
[332190494,1721022639205,-1662.12038026,0.00014,2]
[332190497,1721022639222,-6692.85647322,0.00014,2]
[332190499,1721022639233,-251.199396,0.00014,2]
[332190501,1721022639244,-5436.33640423,0.00014,2]
[332190503,1721022639259,-2659.96312442,0.00014,2]
[332190506,1721022639275,-251.9475,0.00014,2]
[332190508,1721022639285,-399.08923112,0.00014,2]
[332190510,1721022639297,-387.7916415,0.00014,2]
[332190513,1721022639308,-6173.72779736,0.00014,2]
[332190517,1721022639741,-499.9996419,0.00014,2]
[332190518,1721022639837,-409.15439696,0.00014,2]
[332190519,1721022639848,-76574.05423502,0.00014,2]
[332190520,1721022639933,-5436.26185265,0.00014,2]
[332190521,1721022640047,-151749.15377722,0.00014,2]
[332190522,1721022640057,-20237.09354739,0.00014,2]
[332190523,1721022640068,-70264.24691589,0.00014,2]
[332190524,1721022640079,-1574.3017,0.00014,2]
[332190543,1721022642678,-158.78655632,0.00011098,2]
[332190544,1721022642688,-245.61055457,0.00013999,2]
[332190545,1721022642697,-10309.26662125,0.00014,2]
[332190546,1721022642708,-292.35005528,0.00014,2]
[332190547,1721022642719,-14566.77179293,0.00014,2]
[332190548,1721022642767,-1025.25340289,0.00014,2]
[332190549,1721022642778,-660.19,0.00014,2]
[332190550,1721022642789,-2084.09343301,0.00014,2]
[332190551,1721022642800,-385.6267007,0.00014,2]
[332190552,1721022642930,-5321.55005495,0.00014,2]
[332190553,1721022642943,-5925.51205195,0.00014,2]
[332190555,1721022642955,-9013.5259233,0.00014,2]
[332190557,1721022642972,-197539.56147077,0.00014,2]
[332190559,1721022642981,-500.0,0.00014,2]
[332190560,1721022642990,-500.0,0.00014,2]
[332190561,1721022642999,-500.0,0.00014,2]
[332190562,1721022643008,-847.0,0.00014,2]
[332190563,1721022643017,-151.0,0.00014,2]
[332190564,1721022643026,-151.0,0.00014,2]
[332190565,1721022643036,-151.354593,0.00014,2]
[332190566,1721022643045,-36196.00743394,0.00014,2]
[332190584,1721022645597,-1058.18632061,0.00014,2]
[332190585,1721022645621,-388200.83861077,0.00014,2]
[332190586,1721022645716,-384.50318454,0.00014,2]
[332190587,1721022645848,-377.28,0.00014,2]
[332190588,1721022645860,-670.5,0.00014,2]
[332190589,1721022645951,-1573.58351148,0.00014,2]
[332190590,1721022645962,-4710.64140121,0.00014,2]
[332190597,1721023282787,2000.0,0.00025,60]
[332190598,1721023343025,692.0,0.00025,60]
[332190599,1721023355870,693.0,0.00027,120]
[332190600,1721023420236,659.31,0.00010017,2]
[332190603,1721023568029,125335.34111496,0.00027,120]
[332190606,1721023786838,17340.69,0.0001,2]
[332190607,1721023786861,28431.58578599,0.0001,2]
[332190614,1721023831856,-159.09090106,0.00010243,2]
[332190615,1721023831867,-710.0,0.00010295,2]
[332190616,1721023831877,-300.0,0.00010343,2]
[332190617,1721023831888,-300.0,0.00010343,2]
[332190618,1721023831898,-4176.37027265,0.00010344,2]
[332190619,1721023831909,-3766.1,0.00010344,2]
[332190620,1721023831930,-397.56791311,0.00010344,2]
[332190621,1721023831941,-642.3977412,0.00010344,2]
[332190622,1721023831953,-1629.4257306,0.00010344,2]
[332190623,1721023831965,-302.11780374,0.00010344,2]
[332190624,1721023831976,-975.9257387,0.00010344,2]
[332190625,1721023831985,-21.9466947,0.00011098,2]
[332190626,1721023831996,-357.58999619,0.00011098,2]
[332190627,1721023832006,-364.84556817,0.00011098,2]
[332190628,1721023832016,-1452.03443564,0.00011098,2]
[332190629,1721023832027,-456.76620795,0.00011098,2]
[332190630,1721023832038,-956.69375819,0.00011098,2]
[332190631,1721023832050,-178.69578457,0.00011098,2]
[332190632,1721023832059,-298.75335032,0.00011098,2]
[332190633,1721023832068,-193.83550993,0.00011098,2]
[332190634,1721023832078,-1261.10470397,0.00011098,2]
[332190635,1721023832087,-202.52407961,0.00011197,2]
[332190636,1721023832097,-155.0,0.00011197,2]
[332190637,1721023832107,-202.52407961,0.00011197,2]
[332190638,1721023832117,-2022.72,0.0001182,2]
[332190639,1721023832126,-200.0,0.00011854,2]
[332190640,1721023832137,-3532.9,0.00011855,2]
[332190641,1721023832147,-1228.39,0.00011856,2]
[332190642,1721023832156,-375.79,0.00011857,2]
[332190643,1721023832165,-250.0,0.00011865,2]
[332190644,1721023832175,-250.0,0.00011885,2]
[332190645,1721023832184,-995.26384538,0.00011907,2]
[332190646,1721023832195,-497.91491263,0.00011907,2]
[332190647,1721023832207,-4866.61354802,0.00011907,2]
[332190648,1721023832219,-17520.20769397,0.00011907,2]
[332190649,1721023832228,-1000.0,0.00012064,2]
[332190650,1721023832237,-571.83,0.00012064,2]
[332190651,1721023832246,-173.84,0.0001207,2]
[332190652,1721023832256,-628.29,0.0001207,2]
[332190653,1721023832265,-659.31,0.00012281,2]
[332190654,1721023832275,-199.24588859,0.00012302,2]
[332190656,1721023832285,-155.0,0.00012302,2]
[332190657,1721023832294,-2866.49,0.00012794,2]
[332190658,1721023832303,-181.91,0.00012794,2]
[332190659,1721023832313,-2866.49,0.00012797,2]
[332190660,1721023832322,-2866.49,0.00012801,2]
[332190661,1721023832331,-2866.49,0.00012804,2]
[332190662,1721023832340,-2866.49,0.00012807,2]
[332190663,1721023832349,-2866.49,0.00012811,2]
[332190664,1721023832359,-2866.49,0.00012814,2]
[332190665,1721023832369,-2866.49,0.00012818,2]
[332190666,1721023832378,-2866.49,0.00012821,2]
[332190667,1721023832388,-2866.49,0.00012824,2]
[332190668,1721023832397,-2866.49,0.00012828,2]
[332190669,1721023832406,-2866.49,0.00012831,2]
[332190670,1721023832416,-2866.49,0.00012834,2]
[332190671,1721023832425,-2866.49,0.00012838,2]
[332190672,1721023832434,-2866.49,0.00012841,2]
[332190673,1721023832444,-2866.49,0.00012845,2]
[332190674,1721023832453,-2866.49,0.00012848,2]
[332190675,1721023832462,-2866.49,0.00012851,2]
[332190676,1721023832472,-2866.49,0.00012855,2]
[332190677,1721023832481,-2866.49,0.00012858,2]
[332190678,1721023832491,-300.0,0.00013,2]
[332190679,1721023832502,-1250.0,0.00013,2]
[332190680,1721023832511,-655.7473,0.00013125,2]
[332190681,1721023832521,-174.903572,0.00013396,2]
[332190682,1721023832531,-358.89065383,0.00013543,2]
[332190683,1721023832540,-1000.0,0.00013572,2]
[332190684,1721023832549,-1435.0078,0.000136,2]
[332190685,1721023832559,-788.8187,0.000136,2]
[332190686,1721023832568,-158.6936852,0.000136,2]
[332190687,1721023832577,-7500.0,0.000136,2]
[332190688,1721023832586,-1200.0,0.00013602,2]
[332190689,1721023832595,-2446.218,0.00013602,2]
[332190690,1721023832610,-1216.595,0.00013602,2]
[332190691,1721023832619,-1072.0,0.00013602,2]
[332190692,1721023832629,-250.0,0.00013699,2]
[332190693,1721023832641,-286.24,0.00013699,2]
[332190694,1721023832651,-611.9,0.00013699,2]
[332190695,1721023832662,-500.0,0.00013699,2]
[332190696,1721023832671,-500.0,0.00013699,2]
[332190697,1721023832683,-247.11153064,0.00013699,2]
[332190698,1721023832692,-500.0,0.00013699,2]
[332190699,1721023832701,-1133.31,0.00013699,2]
[332190700,1721023832711,-500.0,0.00013699,2]
[332190701,1721023832720,-319.49218402,0.00013699,2]
[332190702,1721023832729,-519.82681978,0.00013699,2]
[332190703,1721023832738,-500.0,0.00013699,2]
[332190704,1721023832748,-500.0,0.00013699,2]
[332190705,1721023832757,-256.97069364,0.00013699,2]
[332190706,1721023832767,-500.0,0.00013699,2]
[332190707,1721023832776,-500.0,0.00013699,2]
[332190708,1721023832785,-500.0,0.00013699,2]
[332190709,1721023832795,-580.88,0.00013699,2]
[332190710,1721023832804,-500.0,0.00013699,2]
[332190711,1721023832813,-510.56453814,0.00013699,2]
[332190712,1721023832823,-608.5545115,0.00013699,2]
[332190713,1721023832832,-500.0,0.00013699,2]
[332190714,1721023832841,-1300.12,0.00013699,2]
[332190715,1721023832851,-2303.86,0.00013699,2]
[332190716,1721023832861,-445.49842,0.00013699,2]
[332190717,1721023832870,-500.0,0.00013699,2]
[332190718,1721023832879,-500.0,0.00013699,2]
[332190719,1721023832892,-500.0,0.00013699,2]
[332190720,1721023832905,-1641.99,0.00013699,2]
[332190721,1721023832914,-354.4574,0.000137,2]
[332190722,1721023832923,-378.3831,0.000137,2]
[332190723,1721023832933,-9213.60652797,0.000137,2]
[332190724,1721023832949,-1074.32,0.000137,2]
[332190725,1721023832966,-16064.99999999,0.000137,2]
[332190726,1721023832978,-542.70216,0.000137,2]
[332190727,1721023832992,-935.25814264,0.000137,2]
[332190728,1721023833004,-4470.44448037,0.000137,2]
[332190729,1721023833015,-14004.0540969,0.000137,2]
[332190731,1721023837906,-27054.70142438,0.00012121,2]
[332190732,1721023837917,-125547.89909213,0.000137,2]
[332190733,1721023837926,-403.0244,0.000137,2]
[332190734,1721023837936,-69372.209,0.000137,2]
[332190735,1721023837945,-1000.0,0.000137,2]
[332190736,1721023837956,-500.0,0.000137,7]
[332190737,1721023837967,-396.8,0.000137,2]
[332190738,1721023837977,-521.34144675,0.00013736,2]
[332190739,1721023837986,-1048.00207908,0.00013736,2]
[332190740,1721023837996,-500.0,0.00013754,2]
[332190741,1721023838006,-460.06011511,0.00013754,2]
[332190742,1721023838015,-500.0,0.00013754,2]
[332190743,1721023838026,-1133.31,0.00013754,2]
[332190744,1721023838035,-500.0,0.00013754,2]
[332190745,1721023838045,-500.0,0.00013754,2]
[332190746,1721023838055,-500.0,0.00013754,2]
[332190747,1721023838064,-500.0,0.00013754,2]
[332190748,1721023838073,-500.0,0.00013754,2]
[332190749,1721023838082,-500.0,0.00013754,2]
[332190750,1721023838091,-580.88,0.00013754,2]
[332190751,1721023838100,-500.0,0.00013754,2]
[332190752,1721023838110,-500.0,0.00013754,2]
[332190753,1721023838119,-1300.12,0.00013754,2]
[332190754,1721023838129,-2303.86,0.00013754,2]
[332190755,1721023838138,-500.0,0.00013754,2]
[332190756,1721023838148,-500.0,0.00013754,2]
[332190757,1721023838157,-500.0,0.00013754,2]
[332190758,1721023838166,-1641.99,0.00013754,2]
[332190759,1721023838175,-837.11029593,0.00013759,2]
[332190760,1721023838185,-361.92657134,0.0001379,2]
[332190761,1721023838195,-361.92657134,0.0001379,2]
[332190762,1721023838204,-361.92657134,0.000138,2]
[332190763,1721023838213,-261.87225124,0.00013802,2]
[332190764,1721023838223,-500.0,0.00013809,2]
[332190765,1721023838233,-500.0,0.00013809,2]
[332190766,1721023838242,-1133.31,0.00013809,2]
[332190767,1721023838252,-500.0,0.00013809,2]
[332190768,1721023838262,-500.0,0.00013809,2]
[332190769,1721023838271,-500.0,0.00013809,2]
[332190770,1721023838280,-500.0,0.00013809,2]
[332190771,1721023838290,-500.0,0.00013809,2]
[332190772,1721023838299,-500.0,0.00013809,2]
[332190773,1721023838309,-580.88,0.00013809,2]
[332190775,1721023838319,-500.0,0.00013809,2]
[332190777,1721023838328,-500.0,0.00013809,2]
[332190779,1721023838338,-1300.12,0.00013809,2]
[332190781,1721023838347,-2303.86,0.00013809,2]
[332190783,1721023838356,-500.0,0.00013809,2]
[332190785,1721023838365,-500.0,0.00013809,2]
[332190786,1721023838375,-500.0,0.00013809,2]
[332190789,1721023838384,-1641.99,0.00013809,2]
[332190792,1721023838394,-361.92657134,0.00013833,2]
[332190794,1721023838403,-154.12463,0.0001386,2]
[332190796,1721023838411,-3000.0,0.0001386,2]
[332190798,1721023838420,-500.0,0.00013864,2]
[332190800,1721023838429,-500.0,0.00013864,2]
[332190802,1721023838438,-1133.31,0.00013864,2]
[332190804,1721023838447,-500.0,0.00013864,2]
[332190806,1721023838457,-500.0,0.00013864,2]
[332190808,1721023838466,-249.459768,0.00013864,2]
[332190810,1721023838475,-500.0,0.00013864,2]
[332190812,1721023838485,-500.0,0.00013864,2]
[332190814,1721023838494,-500.0,0.00013864,2]
[332190816,1721023838503,-580.88,0.00013864,2]
[332190818,1721023838512,-500.0,0.00013864,2]
[332190820,1721023838521,-500.0,0.00013864,2]
[332190822,1721023838530,-1300.12,0.00013864,2]
[332190824,1721023838539,-2303.86,0.00013864,2]
[332190826,1721023838549,-500.0,0.00013864,2]
[332190828,1721023838558,-500.0,0.00013864,2]
[332190830,1721023838567,-500.0,0.00013864,2]
[332190832,1721023838575,-1641.99,0.00013864,2]
[332190834,1721023838585,-361.92657134,0.00013867,2]
[332190835,1721023838593,-500.0,0.00013888,2]
[332190836,1721023838604,-200.0,0.00013888,2]
[332190837,1721023838614,-647.71813835,0.00013889,2]
[332190838,1721023838624,-487.60076997,0.00013899,2]
[332190839,1721023838633,-924.24,0.00013899,2]
[332190840,1721023838643,-503.46449954,0.00013899,2]
[332190841,1721023838653,-527.80162773,0.00013899,2]
[332190842,1721023838662,-1000.0,0.000139,2]
[332190843,1721023838671,-361.92657134,0.000139,2]
[332190844,1721023838683,-17607.17359466,0.000139,2]
[332190845,1721023838692,-500.0,0.00013918,2]
[332190846,1721023838701,-500.0,0.00013918,2]
[332190847,1721023838710,-1133.31,0.00013918,2]
[332190848,1721023838719,-500.0,0.00013918,2]
[332190849,1721023838729,-500.0,0.00013918,2]
[332190850,1721023838738,-500.0,0.00013918,2]
[332190852,1721023838750,-500.0,0.00013918,2]
[332190854,1721023838759,-500.0,0.00013918,2]
[332190856,1721023838769,-580.88,0.00013918,2]
[332190858,1721023838778,-500.0,0.00013918,2]
[332190860,1721023838787,-338.03616536,0.00013918,2]
[332190862,1721023838796,-1300.12,0.00013918,2]
[332190864,1721023838805,-2303.86,0.00013918,2]
[332190865,1721023838815,-522.33947377,0.00013918,2]
[332190867,1721023838824,-500.0,0.00013918,2]
[332190869,1721023838833,-500.0,0.00013918,2]
[332190871,1721023838843,-1641.99,0.00013918,2]
[332190873,1721023838852,-417.93936495,0.00013949,2]
[332190875,1721023838861,-924.24,0.00013954,2]
[332190877,1721023838870,-500.0,0.00013973,2]
[332190879,1721023838879,-500.0,0.00013973,2]
[332190880,1721023838889,-1133.31,0.00013973,2]
[332190882,1721023838899,-500.0,0.00013973,2]
[332190884,1721023838908,-500.0,0.00013973,2]
[332190886,1721023838917,-500.0,0.00013973,2]
[332190888,1721023838927,-500.0,0.00013973,2]
[332190890,1721023838936,-500.0,0.00013973,2]
[332190892,1721023838945,-580.88,0.00013973,2]
[332190894,1721023838954,-500.0,0.00013973,2]
[332190896,1721023838963,-1300.12,0.00013973,2]
[332190897,1721023838973,-2303.86,0.00013973,2]
[332190899,1721023838982,-500.0,0.00013973,2]
[332190901,1721023838991,-500.0,0.00013973,2]
[332190903,1721023839000,-1641.99,0.00013973,2]
[332190905,1721023839009,-156.27279404,0.00013989,2]
[332190907,1721023839019,-371.10892981,0.00013989,2]
[332190908,1721023839028,-271.76822835,0.00013989,2]
[332190910,1721023839037,-266.76659385,0.00013989,2]
[332190912,1721023839046,-274.52546721,0.00013989,2]
[332190914,1721023839056,-789.6999555,0.00013989,2]
[332190916,1721023839065,-301.0,0.0001399,2]
[332190918,1721023839074,-1697.322117,0.00013996,2]
[332190920,1721023839084,-28354.5572045,0.00013996,2]
[332190922,1721023839093,-182.89688733,0.00013999,2]
[332190924,1721023839102,-720.82590389,0.00013999,2]
[332190926,1721023839111,-500.0,0.00013999,2]
[332190928,1721023839121,-500.0,0.00013999,2]
[332190930,1721023839130,-500.0,0.00013999,2]
[332190932,1721023839140,-3605.5297424,0.00013999,2]
[332190934,1721023839150,-6320.3552202,0.00013999,2]
[332190936,1721023839159,-279.8930975,0.00013999,2]
[332190938,1721023839168,-209.03744674,0.00013999,2]
[332190939,1721023839177,-295.93354496,0.00013999,2]
[332190942,1721023839187,-155.0,0.00013999,2]
[332190944,1721023839196,-150.0,0.00013999,2]
[332190945,1721023839206,-209.03744674,0.00013999,2]
[332190947,1721023839215,-253.56462034,0.00013999,2]
[332190949,1721023839224,-329.5190332,0.00013999,2]
[332190951,1721023839234,-377.17029654,0.00013999,2]
[332190953,1721023839243,-257217.80329538,0.00014,2]
[332190955,1721023839252,-307825.99204902,0.00014,2]
[332190958,1721023839265,-415307.27655668,0.00014,2]
[332190960,1721023839274,-2000.0,0.00014,2]
[332190961,1721023839283,-665792.06208332,0.00014,2]
[332190963,1721023839294,-277.02172013,0.00014,2]
[332190966,1721023839312,-29180.13036895,0.00014,2]
[332190968,1721023839323,-258.02513641,0.00014,2]
[332190972,1721023839350,-125806.08074796,0.00014,2]
[332190974,1721023839363,-803.325,0.00014,2]
[332190976,1721023839374,-402.76552,0.00014,2]
[332190979,1721023839385,-7489.69130308,0.00014,2]
[332190981,1721023839400,-659.75132017,0.00014,2]
[332191038,1721023840058,-155.0,0.00013899,2]
[332191040,1721023840067,-247.67132325,0.00013999,2]
[332191042,1721023840077,-989.87792734,0.00014,2]
[332191044,1721023840088,-736369.98601807,0.00014,2]
[332191063,1721023840256,-3430.84479692,0.00014,2]
[332191065,1721023840269,-7390.50773436,0.00014,2]
[332191093,1721023840531,-1101.1,0.000136,2]
[332191343,1721023842966,-155.0,0.00011098,2]
[332191346,1721023842975,-315.94417874,0.00013543,2]
[332191349,1721023842987,-205.39726801,0.00013543,2]
[332191352,1721023842996,-3568.12273199,0.000136,2]
[332191355,1721023843007,-2830.77726801,0.000136,2]
[332191358,1721023843017,-8302.13142793,0.00014,2]
[332191361,1721023843028,-1722.22563308,0.00014,2]
[332191370,1721023843081,-300.0,0.00014,2]
[332191373,1721023843093,-2745.0,0.00014,2]
[332191383,1721023843188,-1133.29076634,0.00013999,2]
[332191385,1721023843200,-5806.69913901,0.00013999,2]
[332191387,1721023843209,-20209.96195532,0.00014,2]
[332191389,1721023843221,-375.1845608,0.00014,2]
[332191392,1721023843232,-1101.1,0.00014,2]
[332191403,1721023843337,-87665.06358726,0.00014,2]
[332191678,1721023845878,-353.63182889,0.00013699,2]
[332191700,1721023846107,-146.98141773,0.00013699,2]
[332191701,1721023846117,-403.01858227,0.00013999,2]
[332191703,1721023846150,-375.93228978,0.00012121,2]
[332191706,1721023846173,-239.81954935,0.00012121,2]
[332191708,1721023846182,-317.80732162,0.00013999,2]
[332191710,1721023846191,-517.69284315,0.00014,2]
[332191712,1721023846270,-1650.24238056,0.00014,2]
[332191716,1721024077714,550.0,0.00027,120]
[332191717,1721024144722,500.0,0.00027,120]
[332191718,1721024147925,301.48951368,0.00027,120]
[332191719,1721024470032,7000.0,0.00025,60]
[332191720,1721024530504,300.0,0.00025,60]
[332191721,1721024561166,2401.0,0.00025,60]
[332191722,1721024681209,3220.0,0.00027,120]
[332191724,1721024700192,2000.0,0.00027,120]
[332191753,1721025033618,-629.85,0.00010682,2]
[332191754,1721025033627,-401.50495027,0.00010997,2]
[332191755,1721025033638,-150.0,0.00011097,2]
[332191756,1721025033648,-220.35584075,0.00011098,2]
[332191758,1721025033660,-188.62306668,0.00011098,2]
[332191760,1721025033670,-788.6657096,0.00011098,2]
[332191762,1721025033680,-155.0,0.00011098,2]
[332191764,1721025033690,-231.81584553,0.00011098,2]
[332191766,1721025033701,-222.25027935,0.00011098,2]
[332191768,1721025033711,-402.68542471,0.00011098,2]
[332191770,1721025033721,-209.03744674,0.00011098,2]
[332191771,1721025033730,-947.47719756,0.00011098,2]
[332191774,1721025033746,-2324.69092147,0.00011098,2]
[332191776,1721025033756,-593.972778,0.00011098,2]
[332191778,1721025033766,-420.32699895,0.00011098,2]
[332191779,1721025033776,-155.0,0.00011098,2]
[332191780,1721025033786,-196.61750891,0.00011098,2]
[332191781,1721025033796,-317.01872188,0.00011098,2]
[332191782,1721025033805,-156.0,0.00011098,2]
[332191783,1721025033818,-203.67204095,0.00011098,2]
[332191784,1721025033830,-300.240316,0.00011098,2]
[332191785,1721025033841,-1721.07,0.00012525,2]
[332191786,1721025033850,-607.26,0.00012525,2]
[332191787,1721025033860,-150.0,0.00012589,2]
[332191788,1721025033869,-198.8,0.00012611,2]
[332191789,1721025033879,-499.99,0.00012611,2]
[332191790,1721025033888,-250.0,0.00012631,2]
[332191791,1721025033898,-1045.61,0.00012668,2]
[332191792,1721025033907,-181.78,0.00012696,2]
[332191793,1721025033917,-3675.54,0.00012746,2]
[332191794,1721025033926,-1000.0,0.00012809,2]
[332191795,1721025033935,-181.76,0.00012889,2]
[332191796,1721025033946,-629.85,0.00012946,2]
[332191797,1721025033956,-1508.58252144,0.000132,7]
[332191798,1721025033965,-394.204093,0.00013396,2]
[332191799,1721025033977,-856.59,0.00013478,2]
[332191800,1721025033988,-2144.5360235,0.00013516,2]
[332191801,1721025033998,-394.204093,0.00013563,2]
[332191802,1721025034007,-1000.0,0.00013599,2]
[332191803,1721025034017,-5620.98977682,0.000136,2]
[332191804,1721025034029,-30626.06602318,0.000136,2]
[332191805,1721025034038,-904.58,0.00013699,2]
[332191806,1721025034048,-250.0,0.00013699,2]
[332191807,1721025034060,-290.17,0.00013699,2]
[332191808,1721025034071,-372.16086658,0.00013699,2]
[332191809,1721025034080,-500.0,0.00013699,2]
[332191810,1721025034089,-501.50998979,0.00013699,2]
[332191811,1721025034099,-365.26614104,0.00013699,2]
[332191812,1721025034108,-886.1,0.00013699,2]
[332191813,1721025034118,-394.204093,0.00013731,2]
[332191814,1721025034127,-616.33184579,0.00013736,2]
[332191815,1721025034136,-530.79948627,0.00013736,2]
[332191816,1721025034146,-255.07836389,0.00013754,2]
[332191817,1721025034155,-886.1,0.00013754,2]
[332191818,1721025034164,-886.1,0.00013809,2]
[332191819,1721025034173,-886.1,0.00013864,2]
[332191820,1721025034182,-220.62,0.0001389,3]
[332191821,1721025034192,-394.204093,0.00013898,2]
[332191822,1721025034203,-280.75671916,0.00013899,2]
[332191823,1721025034212,-454.2546,0.000139,2]
[332191824,1721025034223,-5164.0909,0.000139,2]
[332191825,1721025034232,-1000.0,0.000139,2]
[332191826,1721025034243,-1000.0,0.000139,2]
[332191827,1721025034253,-212.94933732,0.000139,2]
[332191828,1721025034262,-2097.21568129,0.000139,2]
[332191829,1721025034272,-612.32118928,0.000139,2]
[332191830,1721025034281,-320.51619008,0.000139,2]
[332191831,1721025034290,-249.45876396,0.000139,2]
[332191832,1721025034299,-886.1,0.00013918,2]